Cogmind - Beta 12 X1 @@@ ROGUE MODE // 2022.07.27 @ 20:05:27 Player: Boris Result: Destroyed by D-53 Grenadier with Mini Grenade Launcher Performance ------------- Evolutions (0) 0 Regions Visited (2) 400 Robots Destroyed (13) 65 Value Destroyed (320) 320 Prototype IDs (0) 0 Alien Tech Used (0) 0 Bonus (0) 0 TOTAL SCORE: 785 Bonus ------- None Cogmind --------- Core Integrity 0/250 Matter 300/300 Energy 94/100 System Corruption 0% Temperature Cool (0) Movement Core (50) Location -10/Mines Parts ------- > --- POWER (1) -------- (None) > --- PROPULSION (2) --- Aluminum Leg > --- UTILITY (2) ------ Utility Shielding > --- WEAPON (2) ------- Light Assault Rifle > --- INVENTORY (5) ---- High-capacity Matter Pod (151) Light Assault Rifle Light Assault Rifle Grenade Launcher Peak State ------------ > --- POWER ------------ Ion Engine > --- PROPULSION ------- Light Treads Light Treads > --- UTILITY ---------- Small Storage Unit Utility Shielding > --- WEAPON ----------- Assault Rifle Light Assault Rifle > --- INVENTORY -------- Light Assault Rifle [Rating: 7] Favorites ----------- Power Ion Engine Engine Ion Engine Propulsion Light Treads Treads Light Treads Leg Aluminum Leg Utility Utility Shielding Storage Small Storage Unit Protection Utility Shielding Weapon Light Assault Rifle Ballistic Gun Light Assault Rifle Build | -11 -10 -10 ------- Run | Scr Mat Min Slots Evolved . | . . . Power . | . . . Propulsion . | . . . Utility . | . . . Weapon . | . . . Parts Attached 10 | 6 2 2 Power 2 | 1 1 . Engine 2 | 1 1 . Core . | . . . Reactor . | . . . Propulsion 3 | 2 . 1 Treads 2 | 2 . . Leg 1 | . . 1 Wheel . | . . . Hover . | . . . Flight . | . . . Utility 2 | 1 1 . Device . | . . . Storage 1 | 1 . . Processor . | . . . Hackware . | . . . Protection 1 | . 1 . Artifact . | . . . Weapon 3 | 2 . 1 Energy Gun . | . . . Energy Cannon . | . . . Ballistic Gun 3 | 2 . 1 Ballistic Cannon . | . . . Launcher . | . . . Special Weapon . | . . . Impact Weapon . | . . . Slashing Weapon . | . . . Piercing Weapon . | . . . Special Melee Weapon . | . . . Unidentified Prototypes . | . . . Parts Lost 5 | . 1 4 Power 1 | . 1 . Propulsion 2 | . . 2 Utility . | . . . Weapon 2 | . . 2 Highest Loss Streak 2 | . 1 2 To Critical Strikes . | . . . Average Slot Usage (%) 85 | . 94 78 Engine 11 | . 10 12 Treads 24 | . 28 20 Storage 7 | . 14 2 Protection 13 | . 12 14 Ballistic Gun 27 | . 28 27 Naked Turns . | . . . Heaviest Build 14 | 13 14 14 Greatest Support 40 | 40 40 40 Greatest Overweight (x) 4 | 4 . . Average Overweight (x) . | . . . Largest Inventory Capacity 8 | 8 8 8 Average Capacity 6 | 7 8 5 Most Carried 5 | 1 3 5 Average Carried 3 | . 1 4 Final Capacity 8 | 8 8 5 Final Carried 4 | 1 3 4 Class Distribution -------------------- 100% | Mutant Dominant Class ---------------- Mutant | -10/Materials Mutant | -10/Mines Resources | -11 -10 -10 ----------- Run | Scr Mat Min Matter Collected 593 | 166 207 220 Remotely . | . . . Salvage Created 413 | . 291 122 Parts 26 | . 18 8 Haulers Intercepted . | . . . Recyclers Shooed . | . . . Parts Field Recycled . | . . . Retrieved Matter . | . . . Parts Self-Destructed . | . . . Prevented . | . . . Kills | -11 -10 -10 ------- Run | Scr Mat Min Combat Hostiles Destroyed 12 | . 7 5 Guns 12 | . 7 5 Classes Destroyed 3 | . 3 . Recycler 1 | . 1 . Swarmer 5 | . 2 3 Grunt 7 | . 5 2 Best Kill Streak 5 | . 5 3 Combat Bots Only 4 | . 4 3 Max Kills in Single Turn 1 | . 1 1 Gunslinging . | . . . Exploded . | . . . Melee . | . . . Uniques/NPCs Destroyed . | . . . Combat | -11 -10 -10 -------- Run | Scr Mat Min Damage Taken 865 | . 439 426 Core 253 | . 87 166 Absorbed by Shields . | . . . Redirected to Shielding 7 | . 7 . Core Remaining (%) 100 | 100 . . Volleys Fired 48 | . 34 14 Largest 2 | . 2 2 Hottest 40 | . 40 40 Shots Fired 95 | . 68 27 Gun 95 | . 68 27 Cannon . | . . . Launcher . | . . . Special . | . . . Kinetic 95 | . 68 27 Thermal . | . . . Explosive . | . . . Electromagnetic . | . . . Robot Hit Streak 11 | . 7 11 Robot Miss Streak 3 | . 3 3 Penetration Max . | . . . Secondary Targets 2 | . 2 . Max Gunslinging Chain 1 | . 1 . Shots Hit Robots 64 | . 46 18 Core Hits 29 | . 18 11 Critical Kills . | . . . Critical Parts Destroyed . | . . . Critical Strikes . | . . . Melee Attacks . | . . . Impact . | . . . Slashing . | . . . Piercing . | . . . Sneak Attacks . | . . . Combat Hostiles . | . . . Follow-up Attacks . | . . . Damage Inflicted 648 | 1 456 191 Guns 629 | . 456 173 Cannons . | . . . Explosions . | . . . Melee . | . . . Ramming 19 | 1 . 18 Kinetic 629 | . 456 173 Thermal . | . . . Explosive . | . . . Electromagnetic . | . . . Impact . | . . . Slashing . | . . . Piercing . | . . . Highest Corruption . | . . . Average Corruption . | . . . Corruption Purged . | . . . Corruption Blocked . | . . . Overload Shots . | . . . Overflow Damage . | . . . Projectiles . | . . . Explosions . | . . . Melee . | . . . Knockbacks . | . . . Impact . | . . . Kinetic . | . . . Secondary . | . . . Self-Inflicted Damage 8 | . . 8 Shots . | . . . Rammed 4 | 1 . 3 Targets Rammed 4 | 1 . 3 Kicked . | . . . Crushed . | . . . Highest Temperature 31 | . 31 18 Average Temperature 9 | . 9 10 Received Heat Transfer 282 | . 219 63 Siege Activations . | . . . Robots Corrupted . | . . . Combat Hostiles . | . . . Parts Fried . | . . . Impact Corruptions . | . . . Robots Melted . | . . . Combat Hostiles . | . . . Parts Melted . | . . . Heat Transferred . | . . . Parts Sabotaged . | . . . Parts Stolen . | . . . Parts Stripped . | . . . Power Chain Reactions . | . . . Missiles Intercepted . | . . . Alert | -11 -10 -10 ------- Run | Scr Mat Min Peak Influence 225 | . 225 115 Initial . | . . . Average 82 | . 107 79 Maximum Alert Level 1 | . 1 . Low Security (%) 88 | 100 70 100 Level 1 11 | . 29 . Level 2 . | . . . Level 3 . | . . . Level 4 . | . . . Level 5 . | . . . High Security . | . . . Max Security . | . . . Squads Dispatched 1 | . 1 . Investigation . | . . . Extermination . | . . . Reinforcement 1 | . 1 . Assault . | . . . Garrison . | . . . Intercept . | . . . Searches Triggered . | . . . Construction Impeded . | . . . Haulers Reinforced . | . . . Active Scanning Responses . | . . . Cargo Convoy Interrupts . | . . . Stealth | -11 -10 -10 --------- Run | Scr Mat Min Distress Signals 2 | . 2 . Communications Jammed . | . . . Distress Signals . | . . . Times Spotted 41 | . 12 29 Peak Tracking Total 14 | . 5 14 Tactical Retreats 4 | . 2 2 Traps | -11 -10 -10 ------- Run | Scr Mat Min Traps Triggered . | . . . Indirectly . | . . . Trap Hack Attempts . | . . . Triggered . | . . . Disarmed . | . . . Reprogrammed . | . . . Reused . | . . . Traps Extracted . | . . . Installed . | . . . Triggered . | . . . Machines | -11 -10 -10 ---------- Run | Scr Mat Min Machines Disabled . | . . . Max in Single Turn . | . . . Machines Sabotaged . | . . . Garrisons Compromised . | . . . Overloaded Fab Kills . | . . . Hacking | -11 -10 -10 --------- Run | Scr Mat Min Machines Accessed 2 | . 2 . Terminals 2 | . 2 . Fabricators . | . . . Repair Stations . | . . . Recycling Units . | . . . Scanalyzers . | . . . Garrison Access . | . . . Total Hacks 3 | . 3 . Successful 3 | . 3 . Failed . | . . . Catastrophic . | . . . Database Lockouts . | . . . Manual . | . . . Terminals 3 | . 3 . Fabricators . | . . . Repair Stations . | . . . Recycling Units . | . . . Scanalyzers . | . . . Garrison Access . | . . . Terminal Hacks 3 | . 3 . Branch Access Points 1 | . 1 . Unreport Threat 2 | . 2 . Fabricator Hacks . | . . . Repair Station Hacks . | . . . Recycling Unit Hacks . | . . . Scanalyzer . | . . . Garrison Access Hacks . | . . . Unauthorized Hacks . | . . . Terminals . | . . . Fabricators . | . . . Repair Stations . | . . . Recycling Units . | . . . Scanalyzers . | . . . Garrison Access . | . . . Data Cores Recovered . | . . . Used . | . . . Hacking Detections . | . . . Full Trace Events . | . . . Feedback Events . | . . . Feedback Blocked . | . . . Robot Schematics Acquired . | . . . Robots Built . | . . . Authchips . | . . . Time . | . . . Total Robot Build Rating . | . . . Part Schematics Acquired . | . . . Parts Built . | . . . Authchips . | . . . Time . | . . . Total Part Build Rating . | . . . Parts Repaired . | . . . Time . | . . . Parts Recycled . | . . . Recycled Matter . | . . . Retrieved Matter . | . . . Retrieved Components . | . . . Parts Scanalyzed . | . . . Part Schematics Acquired . | . . . Parts Damaged . | . . . Bothacking | -11 -10 -10 ------------ Run | Scr Mat Min Used RIF Installer . | . . . Robots Hacked . | . . . Non-combat . | . . . Combat . | . . . Robot Hacks Applied . | . . . Relay Couplers Released . | . . . Fabnet Peak Effective % . | . . . Robots Rewired . | . . . Allies Hacked . | . . . Hacks Repelled . | . . . Allies | -11 -10 -10 -------- Run | Scr Mat Min Total Allies . | . . . Largest Group . | . . . Highest-Rated Group . | . . . Highest-Rated Ally . | . . . Total Orders . | . . . Ally Attacks . | . . . Total Damage . | . . . Kills . | . . . Allies Corrupted . | . . . Allies Melted . | . . . Intel | -11 -10 -10 ------- Run | Scr Mat Min Robot Analysis Total . | . . . Derelict Logs Recovered . | . . . Drone Launches . | . . . Drone Recoveries . | . . . Exploration | -11 -10 -10 ------------- Run | Scr Mat Min Turns Passed 517 | 53 209 255 Spaces Moved 233 | 28 67 138 Core 37 | 9 . 28 Treads 196 | 19 67 110 Legs . | . . . Wheels . | . . . Hover . | . . . Flight . | . . . Fastest Speed 50 | 50 160 50 Average Speed 145 | 153 160 137 Slowest Speed 250 | 250 160 160 Overloaded Moves . | . . . Propulsion Burnouts . | . . . Robots Hopped . | . . . Cave-ins Triggered . | . . . Exploration Rate (%) 20 | 4 23 33 Regions Visited 2 Branch Regions 1 Pre-discovered Areas . | . . . Known Exits Taken 1 | . 1 . Unknown Exits Taken 1 | 1 . . Scrap Searched 1 | . . 1 Spaces Dug . | . . . Terrain Destroyed . | . . . Melee . | . . . Projectile . | . . . AOE . | . . . Terrain Rammed . | . . . Walls Destroyed . | . . . Machines Disabled . | . . . Actions | -11 -10 -10 --------- Run | Scr Mat Min Total 323 | 35 107 181 Wait 18 | . 3 15 Move 231 | 27 66 138 Hop . | . . . Pick Up 8 | 1 2 5 Fast Attach 8 | 6 2 . Attach 2 | . . 2 Detach . | . . . Swap . | . . . Drop 4 | . . 4 Fire 48 | . 34 14 Melee . | . . . Ram 3 | . . 3 Kick . | . . . Crush 1 | 1 . . Escape Stasis . | . . . Rewire . | . . . Trap . | . . . Miscellaneous . | . . . Route ------- -11/Scrapyard -10/Materials (discovered 2 exits: *Min x2) -10/Mines History --------- Turn | Location | Event 29 | -11/Scrapyard | Discovered new exit (range 14) 54 | -11/Scrapyard | Entered Materials 56 | -10/Materials | Identified exit to Mines 263 | -10/Materials | Entered Mines 301 | -10/Mines | Build established: Mutant 407 | -10/Mines | Core integrity fell below 50% 488 | -10/Mines | Assembled infested the area 493 | -10/Mines | Assisted by a Guerilla fighting off Assembled 517 | -10/Mines | Core integrity fell below 20% 518 | -10/Mines | Destroyed by D-53 Grenadier with Mini Grenade Launcher Last Messages --------------- I've been tracking a group of Assembled to figure out where they're coming from, and they're closing on this area, come on!" 00494_ Slammed into T-07 Excavator. 00496_ Destabilizing: Core damaged (-5). 00498_ Slammed into T-07 Excavator. 00512_ Lgt. Treads destroyed. 00514_ C-30 ARC bursts open, deploying its payload. 00514_ D-53 Grenadier unfolds itself. 00514_ U-05 Engineer destroyed. 00514_ R-06 Scavenger destroyed. 00514_ as-00697 destroyed. 00514_ as-36473 destroyed. 00514_ as-70548 destroyed. 00514_ as-50485 destroyed. 00514_ as-37392 destroyed. 00515_ Acquired 9 matter. 00515_ Acquired 65 matter. 00516_ Lgt. Assault Rifle destroyed. 00516_ as-74427 destroyed. 00516_ as-41518 destroyed. Map ----- +----------------------------------------------------+ | ???????????????????????????????????????????????? | | ???????????????????????????????????????????????? | | ???????????????????????????????????????????????? | | ???????????????????????????????????????????????? | | ???????????????????????????????????????????????? | | ???????????????????????????????????????????????? | | ???????????????????????????????????????????????? | | ???????????????????????????????????????????????? | | ???????????????????????????????????????????????? | | ???????????????????????????????????????????????? | | ??????????????????????? ???????????????????????? | | ??????????????????????? ???????????????????????? | | ??????????????????????? ???????????????????????? | | ??????????????????????? ???????????????????????? | | ??????????????????????? ???????????????????????? | | ????????????????#????## ???????????????????????? | | ????????????????# ???# ##?????????????????????? | | ???????? ??????? ???# ##????????????????????? | | ??????? ???????? ??# ##???????????????????? | | ???????# ????????? ?# #???????????????????? | | ???????# ????????? ## % ???????????????????? | | ???????# ?????????? a **????????????????????? | | ???????# #?????????? ?????????????????????? | | ???????# #??????????# #?????????????????????? | | ???????# ##?????????# #??????#??????????????? | | ???????# #????????###@####?? #??????????????? | | ??????## #####????# ## #??????????????? | | ??????#" ? #??### ##?????????????? | | ???????# ?# #??# =! d #?????????????? | | ??????## #?# # =a =d % #??????????? | | ?????## ### ##% ! ###t #?????????? | | ????## a ##??? #?????????? | | ???## ##### ###????? #?????????? | | ??## ##??# ##????????? ?????????? | | ??# * ##?## ??###??????? ???????????? | | ??# #??##### ?? #???????????????????? | | ??# ##?????###??# #???????????????????? | | ??## ##?????##### ######??????????????? | | ???## ####### #??????????????? | | ????# #??????????????? | | ???# ## """ """ #??????????????? | | ???# ####### #### """ """ #??????????????? | | ???# #?????# #??# """ """ #??????????????? | | ???## #?????# #??# #??????????????? | | ????#### ##?????# #??# """ #??????????????? | | ???????##???##### #??# """ #??????????????? | | ????????????# #??# """ #??????????????? | | ????????????# #####??# #??????????????? | | ????????????# #??????############??????????????? | | ????????????# #????????????????????????????????? | +----------------------------------------------------+ Best States ------------- Heat Dissipation 25 Energy Generation 10 Energy Capacity 250 Matter Stores 300 Matter Capacity 300 Sight Range 16 Terrain Scan Density 10 Utility Shielding 33 Evasion (%) 50 Recoil Reduction 2 Item Schematics ----------------- None Robot Schematics ------------------ None Fabricated ------------ Nothing Alien Tech Used ----------------- None Achievements -------------- None Challenges ------------ None Game ------ Seed CryofiberAblativeBlade Manual? 0 Play Time 00:06:50 Cumulative 332.4 hours Start 2022.07.27 @ 19:57:10 End 2022.07.27 @ 20:05:27 Sessions 1 Manual Loads 0 Difficulty Rogue Special Mode None Game No. 119 Rogue 104 Adventurer 15 Explorer 0 Win Type - Total 17 Types 6/0/6/1/2/0/2/0/0 Lore% 92 Gallery% 91 Achievement% 80 Wizard Run 0 Options --------- ASCII 0 Keyboard 0 Movement Numpad Keybinds 0 Fullscreen 1 Font 18/SmallcapsGlow Map View 76x50 Tactical HUD 1 Map Filters NONE Filters NONE Steam 1 RUN: b1866c71-08ae-457b-a79b-7097564ae230